[Event "Swedish Chess Championship 2019: Veteran-SM 65+"]
[Site "Stiga Sports Arena, Arenatorget 1, Eskilstuna, Sweden"]
[Date "2019.07.08"]
[Round "3.1"]
[White "Eriksson, Mats"]
[Black "Andersson, Kjell-Ake"]
[Result "0-1"]
[TimeControl "90 minutes for 40 moves + 30 minutes for the rest of the game + 30 seconds per move from move one"]
[WhiteFideId "1700936"]
[BlackFideId "1713825"]
[WhiteElo "1961"]
[BlackElo "1859"]

1. e4 {[%clk 01:30:48]} {[%emt 00:00:21]} e6 {[%clk 01:30:23]} {[%emt
00:02:06]} 2. d4 {[%clk 01:30:43]} {[%emt 00:02:09]} d5 {[%clk 01:30:41]}
{[%emt 00:00:41]} 3. Nd2 {[%clk 01:30:29]} {[%emt 00:02:49]} Nf6 {[%clk
01:30:27]} {[%emt 00:02:44]} 4. e5 {[%clk 01:30:21]} {[%emt 00:02:18]} Nfd7
{[%clk 01:30:46]} {[%emt 00:00:42]} 5. Bd3 {[%clk 01:28:54]} {[%emt 00:06:57]}
c5 {[%clk 01:29:38]} {[%emt 00:05:46]} 6. c3 {[%clk 01:28:51]} {[%emt
00:01:52]} Nc6 {[%clk 01:29:43]} {[%emt 00:01:31]} 7. Ne2 {[%clk 01:28:17]}
{[%emt 00:03:47]} Qb6 {[%clk 01:29:41]} {[%emt 00:01:56]} 8. Nf3 {[%clk
01:27:03]} {[%emt 00:06:11]} cxd4 {[%clk 01:29:50]} {[%emt 00:01:20]} 9. cxd4
{[%clk 01:27:02]} {[%emt 00:01:43]} f6 {[%clk 01:30:12]} {[%emt 00:00:37]} 10.
exf6 {[%clk 01:26:19]} {[%emt 00:04:56]} Nxf6 {[%clk 01:30:35]} 11. O-O {[%clk
01:25:14]} Bd6 {[%clk 01:26:52]} 12. Bd2 {[%clk 01:24:02]} O-O {[%clk
01:24:15]} 13. Bc3 {[%clk 01:23:28]} Bd7 {[%clk 01:23:17]} 14. Rc1 {[%clk
01:13:16]} Rae8 {[%clk 01:22:00]} 15. Qd2 {[%clk 00:59:24]} {[%emt 00:03:39]}
Qc7 {[%clk 01:17:04]} {[%emt 00:05:22]} 16. b4 {[%clk 00:52:10]} {[%emt
00:07:47]} Qb8 {[%clk 01:10:41]} {[%emt 00:06:52]} 17. b5 {[%clk 00:48:51]}
{[%emt 00:03:51]} Ne7 {[%clk 00:57:53]} {[%emt 00:13:18]} 18. a4 {[%clk
00:43:28]} {[%emt 00:05:53]} Ng4 {[%clk 00:52:58]} {[%emt 00:05:23]} 19. h3
{[%clk 00:29:37]} {[%emt 00:14:22]} Rxf3 {[%clk 00:51:39]} {[%emt 00:01:49]} 20.
hxg4 {[%clk 00:29:52]} {[%emt 00:00:15]} Rf6 {[%clk 00:49:22]} {[%emt
00:02:46]} 21. g5 {[%clk 00:25:47]} {[%emt 00:04:36]} Rf7 {[%clk 00:47:35]}
{[%emt 00:02:14]} 22. Qe3 {[%clk 00:20:28]} {[%emt 00:05:51]} Nf5 {[%clk
00:45:38]} {[%emt 00:02:28]} 23. Qh3 {[%clk 00:19:30]} {[%emt 00:01:29]} g6
{[%clk 00:43:59]} {[%emt 00:02:09]} 24. g3 {[%clk 00:17:16]} {[%emt 00:02:44]}
e5 {[%clk 00:40:19]} {[%emt 00:04:09]} 25. g4 {[%clk 00:15:48]} {[%emt
00:01:58]} e4 {[%clk 00:37:45]} {[%emt 00:03:04]} 26. Bc2 {[%clk 00:15:20]}
{[%emt 00:00:58]} Ng7 {[%clk 00:37:11]} {[%emt 00:01:04]} 27. Bb3 {[%clk
00:14:29]} {[%emt 00:01:21]} Be6 {[%clk 00:35:38]} {[%emt 00:02:02]} 28. Ng3
{[%clk 00:11:42]} {[%emt 00:03:17]} Bf4 {[%clk 00:33:53]} {[%emt 00:02:15]} 29.
Rce1 {[%clk 00:09:31]} {[%emt 00:02:42]} Bxg5 {[%clk 00:32:06]} {[%emt
00:02:16]} 30. f3 {[%clk 00:07:24]} {[%emt 00:02:38]} e3 {[%clk 00:30:32]}
{[%emt 00:02:03]} 31. Ne2 {[%clk 00:05:05]} {[%emt 00:02:49]} Nh5 {[%clk
00:28:58]} {[%emt 00:02:04]} 32. Qh2 {[%clk 00:03:52]} {[%emt 00:01:43]} Qxh2+
{[%clk 00:27:38]} {[%emt 00:01:50]} 33. Kxh2 {[%clk 00:04:14]} Nf4 {[%clk
00:27:38]} {[%emt 00:00:39]} 34. Kg3 {[%emt 00:01:51]} Nxe2+ {[%clk 00:26:43]}
{[%emt 00:00:02]} 35. Rxe2 {[%clk 00:04:37]} {[%emt 00:00:08]} Bf4+ {[%clk
00:26:04]} {[%emt 00:01:09]} 36. Kg2 {[%clk 00:04:43]} {[%emt 00:00:24]} Rc7
{[%clk 00:25:58]} {[%emt 00:00:35]} 37. Bb2 {[%clk 00:04:46]} {[%emt 00:00:29]}
Rec8 {[%clk 00:25:37]} {[%emt 00:00:50]} 38. Rd1 {[%clk 00:05:00]} {[%emt
00:00:17]} Kg7 {[%clk 00:23:29]} {[%emt 00:02:37]} 39. Rd3 {[%clk 00:05:21]}
{[%emt 00:00:11]} h5 {[%clk 00:23:14]} {[%emt 00:00:44]} 40. gxh5 gxh5 0-1

[Event "Swedish Chess Championship 2019: Veteran-SM 65+"]
[Site "Stiga Sports Arena, Arenatorget 1, Eskilstuna, Sweden"]
[Date "2019.07.08"]
[Round "3.2"]
[White "Lagerborg, Krister"]
[Black "Wedin, Svante"]
[Result "1-0"]
[TimeControl "90 minutes for 40 moves + 30 minutes for the rest of the game + 30 seconds per move from move one"]
[WhiteFideId "1712411"]
[BlackFideId "1711989"]
[WhiteElo "2129"]
[BlackElo "2003"]

1. e4 {[%clk 01:30:56]} {[%emt 00:00:07]} c5 {[%clk 01:30:53]} {[%emt
00:00:21]} 2. Nf3 {[%clk 01:31:15]} {[%emt 00:00:26]} g6 {[%clk 01:31:16]}
{[%emt 00:00:24]} 3. d4 {[%clk 01:31:40]} {[%emt 00:00:20]} cxd4 {[%clk
01:31:41]} {[%emt 00:00:21]} 4. Nxd4 {[%clk 01:32:04]} {[%emt 00:00:20]} Nc6
{[%clk 01:32:02]} {[%emt 00:00:35]} 5. Be3 {[%clk 01:31:47]} {[%emt 00:02:47]}
Nf6 {[%clk 01:29:52]} {[%emt 00:09:51]} 6. Nc3 {[%clk 01:31:51]} {[%emt
00:01:38]} Bg7 {[%clk 01:29:26]} {[%emt 00:03:18]} 7. Bc4 {[%clk 01:28:41]}
{[%emt 00:12:55]} Qa5 {[%clk 01:28:38]} {[%emt 00:04:39]} 8. O-O {[%clk
01:28:27]} {[%emt 00:02:41]} Qb4 {[%clk 01:27:23]} {[%emt 00:06:25]} 9. Bb3
{[%clk 01:23:32]} {[%emt 00:03:20]} Nxe4 {[%clk 01:19:18]} 10. Nxe4 {[%clk
01:23:01]} Nxd4 {[%clk 01:19:33]} 11. Bxf7+ {[%clk 01:21:19]} Kxf7 {[%clk
01:12:44]} 12. Ng5+ {[%clk 01:21:25]} Kf8 {[%clk 01:04:11]} 13. c3 {[%clk
01:20:35]} Qb5 {[%clk 00:58:27]} {[%emt 00:04:28]} 14. cxd4 {[%clk 01:19:59]}
{[%emt 00:01:06]} h6 {[%clk 00:58:10]} {[%emt 00:00:48]} 15. Qf3+ {[%clk
01:18:27]} {[%emt 00:02:01]} Qf5 {[%clk 00:57:37]} {[%emt 00:01:03]} 16. Qxf5+
{[%clk 01:18:42]} {[%emt 00:00:15]} gxf5 {[%clk 00:58:06]} {[%emt 00:00:01]} 17.
Nf3 {[%clk 01:18:59]} {[%emt 00:00:13]} d6 {[%clk 00:58:06]} {[%emt 00:00:30]}
18. Rac1 {[%clk 01:16:15]} {[%emt 00:03:14]} Ke8 {[%clk 00:40:17]} {[%emt
00:18:20]} 19. Rc7 {[%clk 01:13:15]} {[%emt 00:03:29]} Bf6 {[%clk 00:28:50]}
{[%emt 00:11:58]} 20. b3 {[%clk 01:06:26]} {[%emt 00:07:20]} Be6 {[%clk
00:21:11]} {[%emt 00:08:09]} 21. Rxb7 {[%clk 01:01:09]} {[%emt 00:05:47]} Bd5
{[%clk 00:21:19]} {[%emt 00:00:23]} 22. Rc7 {[%clk 01:01:25]} {[%emt 00:00:14]}
Rg8 {[%clk 00:20:12]} {[%emt 00:01:37]} 23. Kh1 {[%clk 00:59:28]} {[%emt
00:02:27]} Kf7 {[%clk 00:19:44]} {[%emt 00:00:58]} 24. Rfc1 {[%clk 00:57:34]}
{[%emt 00:02:23]} a5 {[%clk 00:09:55]} {[%emt 00:10:20]} 25. Bxh6 {[%clk
00:50:02]} {[%emt 00:08:03]} Bxd4 {[%clk 00:09:13]} {[%emt 00:01:12]} 26. Be3
{[%clk 00:42:50]} {[%emt 00:07:41]} Bf6 {[%clk 00:04:26]} {[%emt 00:05:17]} 27.
Rd1 {[%clk 00:42:55]} {[%emt 00:00:24]} Ke6 {[%clk 00:04:21]} {[%emt 00:00:36]}
28. Rc2 {[%clk 00:37:10]} {[%emt 00:06:15]} Be4 {[%clk 00:02:54]} {[%emt
00:01:58]} 29. Re2 {[%clk 00:36:47]} {[%emt 00:00:52]} Rxg2 {[%clk 00:02:00]}
{[%emt 00:01:24]} 30. Kxg2 {[%clk 00:31:48]} {[%emt 00:05:28]} Rg8+ {[%clk
00:02:21]} {[%emt 00:00:10]} 31. Bg5 {[%clk 00:26:48]} {[%emt 00:05:31]} Rxg5+
{[%clk 00:01:00]} {[%emt 00:01:51]} 32. Kf1 {[%clk 00:26:29]} {[%emt 00:00:48]}
Rh5 {[%clk 00:01:29]} {[%emt 00:00:02]} 33. Nd2 {[%clk 00:23:57]} {[%emt
00:03:02]} Kf7 {[%clk 00:01:09]} {[%emt 00:00:50]} 34. Nxe4 {[%clk 00:23:43]}
{[%emt 00:00:44]} fxe4 {[%clk 00:01:39]} 35. Rxe4 {[%clk 00:23:17]} {[%emt
00:00:56]} Rxh2 {[%clk 00:02:07]} {[%emt 00:00:02]} 36. Rd3 {[%clk 00:22:36]}
{[%emt 00:01:10]} Rh1+ {[%clk 00:02:29]} {[%emt 00:00:09]} 37. Ke2 {[%clk
00:22:57]} {[%emt 00:00:08]} Ra1 {[%clk 00:02:50]} {[%emt 00:00:09]} 38. Ra4
{[%clk 00:22:51]} {[%emt 00:00:36]} 1-0

[Event "Swedish Chess Championship 2019: Veteran-SM 65+"]
[Site "Stiga Sports Arena, Arenatorget 1, Eskilstuna, Sweden"]
[Date "2019.07.08"]
[Round "3.3"]
[White "Gajic, Zoran"]
[Black "Gromark, Jonas"]
[Result "1-0"]
[TimeControl "90 minutes for 40 moves + 30 minutes for the rest of the game + 30 seconds per move from move one"]
[WhiteFideId "1718304"]
[BlackFideId "137122733"]
[WhiteElo "1936"]
[BlackElo "1833"]

1. d4 {[%clk 01:30:57]} {[%emt 00:00:06]} Nf6 {[%clk 01:30:38]} {[%emt
00:01:02]} 2. Nf3 {[%clk 01:31:18]} {[%emt 00:00:30]} d5 {[%clk 01:30:46]}
{[%emt 00:01:21]} 3. c4 {[%clk 01:31:37]} {[%emt 00:00:45]} e6 {[%clk
01:30:26]} {[%emt 00:03:03]} 4. Nc3 {[%clk 01:31:52]} {[%emt 00:00:57]} Be7
{[%clk 01:30:28]} {[%emt 00:01:40]} 5. e3 {[%clk 01:32:12]} {[%emt 00:00:39]}
O-O {[%clk 01:29:47]} {[%emt 00:04:17]} 6. b3 {[%clk 01:31:55]} {[%emt
00:02:52]} c5 {[%clk 01:28:05]} {[%emt 00:07:50]} 7. Bb2 {[%clk 01:30:43]}
{[%emt 00:05:59]} Nc6 {[%clk 01:25:19]} {[%emt 00:11:41]} 8. Bd3 {[%clk
01:29:56]} {[%emt 00:04:47]} Nb4 {[%clk 01:20:04]} {[%emt 00:02:55]} 9. Be2
{[%clk 01:29:58]} b6 {[%clk 01:14:20]} 10. O-O {[%clk 01:28:14]} Bb7 {[%clk
01:14:10]} 11. a3 {[%clk 01:27:49]} Nc6 {[%clk 01:12:26]} 12. cxd5 {[%clk
01:27:29]} Nxd5 {[%clk 01:08:48]} 13. Nxd5 {[%clk 01:27:25]} exd5 {[%clk
01:04:20]} 14. Rc1 {[%clk 01:25:27]} Rc8 {[%clk 01:04:05]} 15. Bd3 {[%clk
01:20:28]} {[%emt 00:00:29]} h6 {[%clk 00:52:05]} {[%emt 00:12:29]} 16. Qe2
{[%clk 01:12:12]} {[%emt 00:08:45]} Na5 {[%clk 00:50:00]} {[%emt 00:02:35]} 17.
Bb1 {[%clk 01:10:16]} {[%emt 00:02:26]} g6 {[%clk 00:44:26]} {[%emt 00:06:04]}
18. Ne5 {[%clk 01:06:36]} {[%emt 00:04:10]} Bf6 {[%clk 00:39:52]} {[%emt
00:05:04]} 19. Ba2 {[%clk 00:43:19]} {[%emt 00:23:47]} Qe7 {[%clk 00:36:16]}
{[%emt 00:04:06]} 20. Rfd1 {[%clk 00:36:00]} {[%emt 00:07:49]} Rfd8 {[%clk
00:34:03]} {[%emt 00:02:44]} 21. h3 {[%clk 00:28:39]} {[%emt 00:07:51]} Nc6
{[%clk 00:30:06]} {[%emt 00:04:26]} 22. Ng4 {[%clk 00:27:47]} {[%emt 00:01:21]}
Bg7 {[%clk 00:28:05]} {[%emt 00:02:32]} 23. dxc5 {[%clk 00:28:09]} {[%emt
00:00:09]} h5 {[%clk 00:25:21]} {[%emt 00:03:14]} 24. Bxg7 {[%clk 00:27:43]}
{[%emt 00:00:56]} Kxg7 {[%clk 00:23:42]} {[%emt 00:02:08]} 25. Qb2+ {[%clk
00:28:02]} {[%emt 00:00:12]} f6 {[%clk 00:22:40]} {[%emt 00:01:32]} 26. Nh2
{[%clk 00:28:25]} {[%emt 00:00:07]} bxc5 {[%clk 00:22:39]} {[%emt 00:00:31]} 27.
Nf3 {[%clk 00:28:12]} {[%emt 00:00:43]} Ne5 {[%clk 00:20:40]} {[%emt 00:02:30]}
28. Nh4 {[%clk 00:27:56]} {[%emt 00:00:44]} Ba6 {[%clk 00:18:42]} {[%emt
00:02:30]} 29. Bb1 {[%clk 00:28:08]} {[%emt 00:00:17]} c4 {[%clk 00:15:04]}
{[%emt 00:04:08]} 30. Bxg6 {[%clk 00:27:44]} {[%emt 00:00:53]} Qb7 {[%clk
00:13:06]} {[%emt 00:02:29]} 31. Bf5 {[%clk 00:28:03]} {[%emt 00:00:11]} Rb8
{[%clk 00:11:25]} {[%emt 00:02:12]} 32. b4 {[%clk 00:23:13]} {[%emt 00:05:20]}
Nd3 {[%clk 00:10:52]} {[%emt 00:01:03]} 33. Bxd3 {[%clk 00:23:34]} {[%emt
00:00:09]} cxd3 {[%clk 00:11:15]} {[%emt 00:00:07]} 34. Nf5+ {[%clk 00:23:24]}
{[%emt 00:00:40]} Kg6 {[%clk 00:10:46]} {[%emt 00:00:59]} 35. Nd4 {[%clk
00:23:35]} {[%emt 00:00:19]} Bc4 {[%clk 00:09:23]} {[%emt 00:01:52]} 36. Ne6
{[%clk 00:16:09]} {[%emt 00:07:56]} Rd6 {[%clk 00:08:13]} {[%emt 00:01:40]} 37.
Nf4+ {[%clk 00:16:20]} {[%emt 00:00:19]} Kh6 {[%clk 00:08:08]} {[%emt
00:00:35]} 38. Nxd3 {[%clk 00:16:34]} {[%emt 00:00:15]} Qe7 {[%clk 00:05:20]}
{[%emt 00:03:18]} 39. Qd4 {[%clk 00:16:13]} {[%emt 00:00:50]} Re6 {[%clk
00:03:05]} {[%emt 00:02:47]} 40. Qf4+ {[%clk 00:16:16]} {[%emt 00:00:27]} 1-0

[Event "Swedish Chess Championship 2019: Veteran-SM 65+"]
[Site "Stiga Sports Arena, Arenatorget 1, Eskilstuna, Sweden"]
[Date "2019.07.08"]
[Round "3.4"]
[White "Svensson, Hakan"]
[Black "Amnell, Mats"]
[Result "1-0"]
[TimeControl "90 minutes for 40 moves + 30 minutes for the rest of the game + 30 seconds per move from move one"]
[WhiteFideId "1714201"]
[BlackFideId "1717316"]
[WhiteElo "2056"]
[BlackElo "1770"]

1. d4 {[%clk 01:30:56]} {[%emt 00:00:05]} Nf6 {[%clk 01:30:45]} {[%emt
00:00:39]} 2. Bg5 {[%clk 01:31:20]} {[%emt 00:00:22]} g6 {[%clk 01:30:55]}
{[%emt 00:01:13]} 3. Bxf6 {[%clk 01:31:43]} {[%emt 00:00:30]} exf6 {[%clk
01:31:16]} {[%emt 00:00:33]} 4. e3 {[%clk 01:32:02]} {[%emt 00:00:37]} Bg7
{[%clk 01:31:07]} {[%emt 00:02:23]} 5. c4 {[%clk 01:32:17]} {[%emt 00:00:57]}
O-O {[%clk 01:29:52]} {[%emt 00:06:28]} 6. Nc3 {[%clk 01:32:38]} {[%emt
00:00:29]} d6 {[%clk 01:23:47]} {[%emt 00:23:24]} 7. g3 {[%clk 01:31:35]}
{[%emt 00:05:34]} Nd7 {[%clk 01:20:45]} {[%emt 00:07:07]} 8. Bg2 {[%clk
01:31:51]} f5 {[%clk 01:19:40]} 9. Nge2 {[%clk 01:31:53]} Nf6 {[%clk 01:17:15]}
10. O-O {[%clk 01:32:09]} Re8 {[%clk 01:16:18]} 11. Qc2 {[%clk 01:31:10]} Rb8
{[%clk 01:12:45]} 12. b4 {[%clk 01:29:01]} Qe7 {[%clk 01:11:06]} 13. b5 {[%clk
01:20:29]} Ne4 {[%clk 01:01:59]} {[%emt 00:01:07]} 14. Nd5 {[%clk 01:13:02]}
{[%emt 00:07:56]} Qd8 {[%clk 01:01:11]} {[%emt 00:01:19]} 15. Rab1 {[%clk
01:11:27]} {[%emt 00:02:05]} Bd7 {[%clk 00:54:56]} {[%emt 00:06:46]} 16. a4
{[%clk 01:09:36]} {[%emt 00:02:21]} c6 {[%clk 00:49:14]} {[%emt 00:06:13]} 17.
Ndc3 {[%clk 01:07:05]} {[%emt 00:03:00]} Qe7 {[%clk 00:41:45]} {[%emt
00:07:59]} 18. bxc6 {[%clk 00:44:07]} {[%emt 00:23:29]} Bxc6 {[%clk 00:37:51]}
{[%emt 00:04:23]} 19. a5 {[%clk 00:30:54]} {[%emt 00:13:41]} Qc7 {[%clk
00:26:03]} {[%emt 00:12:19]} 20. Qa2 {[%clk 00:27:26]} {[%emt 00:03:58]} Nxc3
{[%clk 00:15:53]} {[%emt 00:10:41]} 21. Nxc3 {[%clk 00:27:38]} {[%emt
00:00:18]} Bxg2 {[%clk 00:13:57]} {[%emt 00:02:25]} 22. Kxg2 {[%clk 00:28:04]}
{[%emt 00:00:05]} Rec8 {[%clk 00:10:21]} {[%emt 00:04:06]} 23. Nb5 {[%clk
00:27:21]} {[%emt 00:01:13]} Qc6+ {[%clk 00:08:06]} {[%emt 00:02:46]} 24. Kg1
{[%clk 00:27:02]} {[%emt 00:00:49]} a6 {[%clk 00:07:30]} {[%emt 00:01:06]} 25.
Na7 {[%clk 00:20:42]} {[%emt 00:06:50]} Qxc4 {[%clk 00:07:33]} {[%emt
00:00:27]} 26. Qb2 {[%clk 00:21:09]} {[%emt 00:00:03]} Rd8 {[%clk 00:02:30]}
{[%emt 00:05:32]} 27. Rfc1 {[%clk 00:21:06]} {[%emt 00:00:33]} Qe6 {[%clk
00:01:18]} {[%emt 00:01:42]} 28. Rc7 {[%clk 00:19:32]} {[%emt 00:02:01]} Rd7
{[%clk 00:01:09]} {[%emt 00:00:42]} 29. Qb6 {[%clk 00:14:37]} {[%emt 00:05:26]}
Bf6 {[%clk 00:00:54]} {[%emt 00:00:45]} 30. Nc6 {[%clk 00:13:35]} {[%emt
00:01:32]} Bd8 {[%clk 00:00:40]} {[%emt 00:00:44]} 31. Nxd8 {[%clk 00:13:01]}
{[%emt 00:01:04]} Rdxd8 {[%clk 00:00:40]} {[%emt 00:00:30]} 32. Rxb7 {[%clk
00:13:10]} {[%emt 00:00:21]} Ra8 {[%clk 00:00:43]} {[%emt 00:00:27]} 33. Ra7
{[%clk 00:11:50]} {[%emt 00:01:48]} Rxa7 {[%clk 00:00:44]} {[%emt 00:00:31]} 34.
Qxa7 {[%clk 00:12:13]} {[%emt 00:00:07]} Qa2 {[%clk 00:00:42]} {[%emt
00:00:33]} 35. Qb6 {[%clk 00:12:18]} {[%emt 00:00:26]} Rc8 {[%clk 00:00:43]}
{[%emt 00:00:28]} 36. Rf1 {[%clk 00:09:44]} {[%emt 00:03:05]} d5 {[%clk
00:00:32]} {[%emt 00:00:41]} 37. Qxa6 {[%clk 00:09:50]} {[%emt 00:00:23]} Rc3
{[%clk 00:00:39]} {[%emt 00:00:23]} 38. Qb6 {[%clk 00:09:01]} {[%emt 00:01:20]}
Ra3 {[%clk 00:00:52]} {[%emt 00:00:17]} 39. Rc1 {[%clk 00:01:45]} {[%emt
00:07:46]} Rxa5 {[%clk 00:00:57]} {[%emt 00:00:25]} 40. Qf6 {[%clk 00:00:41]}
{[%emt 00:01:32]} Ra8 {[%clk 00:01:00]} {[%emt 00:00:28]} 41. h4 {[%clk
00:26:16]} {[%emt 00:04:56]} Qe2 {[%clk 00:26:19]} {[%emt 00:05:11]} 42. Kg2
{[%clk 00:25:19]} {[%emt 00:01:26]} h5 {[%clk 00:20:18]} {[%emt 00:06:32]} 43.
Rc7 {[%clk 00:19:20]} {[%emt 00:06:26]} Rf8 {[%clk 00:20:20]} {[%emt 00:00:31]}
44. Qd6 {[%clk 00:17:50]} {[%emt 00:01:57]} Qa2 {[%clk 00:14:01]} {[%emt
00:06:51]} 45. Rd7 {[%clk 00:17:51]} {[%emt 00:00:28]} Ra8 {[%clk 00:11:50]}
{[%emt 00:02:41]} 46. Qf6 {[%clk 00:15:44]} {[%emt 00:02:37]} Rf8 {[%clk
00:12:00]} {[%emt 00:00:22]} 47. Qc6 {[%clk 00:15:41]} {[%emt 00:00:31]} Rb8
{[%clk 00:10:55]} {[%emt 00:01:36]} 48. Qf6 {[%clk 00:15:27]} {[%emt 00:00:45]}
Rf8 {[%clk 00:11:15]} {[%emt 00:00:11]} 49. Qe5 {[%clk 00:15:40]} {[%emt
00:00:17]} Rc8 {[%clk 00:08:17]} {[%emt 00:03:28]} 50. Qxd5 {[%clk 00:12:24]}
{[%emt 00:03:47]} Qa1 {[%clk 00:01:36]} {[%emt 00:07:10]} 51. Qxf7+ {[%clk
00:12:31]} {[%emt 00:00:23]} 1-0

[Event "Swedish Chess Championship 2019: Veteran-SM 65+"]
[Site "Stiga Sports Arena, Arenatorget 1, Eskilstuna, Sweden"]
[Date "2019.07.08"]
[Round "3.5"]
[White "Adolfsson, Kjell"]
[Black "Moborn, Anders"]
[Result "0-1"]
[TimeControl "90 minutes for 40 moves + 30 minutes for the rest of the game + 30 seconds per move from move one"]
[WhiteFideId "1714961"]
[BlackFideId "1706349"]
[WhiteElo "1895"]
[BlackElo "2034"]

1. Nc3 {[%clk 01:30:55]} {[%emt 00:00:07]} d5 {[%clk 01:30:45]} {[%emt
00:00:40]} 2. e4 {[%clk 01:31:19]} {[%emt 00:00:20]} d4 {[%clk 01:30:44]}
{[%emt 00:01:58]} 3. Nce2 {[%clk 01:31:42]} {[%emt 00:00:26]} Nc6 {[%clk
01:28:19]} {[%emt 00:10:41]} 4. Nf3 {[%clk 01:31:48]} {[%emt 00:01:25]} Bg4
{[%clk 01:24:54]} {[%emt 00:13:55]} 5. Ng3 {[%clk 01:29:42]} {[%emt 00:09:15]}
Ne5 {[%clk 01:20:27]} {[%emt 00:11:37]} 6. d3 {[%clk 01:25:41]} Nxf3+ {[%clk
01:15:48]} 7. gxf3 {[%clk 01:26:07]} Bd7 {[%clk 01:15:29]} 8. f4 {[%clk
01:26:10]} e6 {[%clk 01:13:56]} 9. c3 {[%clk 01:21:58]} dxc3 {[%clk 01:13:06]}
10. bxc3 {[%clk 01:22:23]} Bc6 {[%clk 01:13:14]} 11. f5 {[%clk 01:11:29]} e5
{[%clk 01:09:47]} {[%emt 00:00:31]} 12. Be3 {[%clk 01:07:36]} {[%emt 00:04:10]}
Nf6 {[%clk 01:04:04]} {[%emt 00:06:13]} 13. Be2 {[%clk 01:04:36]} {[%emt
00:03:29]} Qd7 {[%clk 01:02:19]} {[%emt 00:02:16]} 14. Rb1 {[%clk 00:57:32]}
{[%emt 00:07:33]} Rd8 {[%clk 00:54:32]} {[%emt 00:08:18]} 15. O-O {[%clk
00:50:33]} {[%emt 00:07:29]} h5 {[%clk 00:50:59]} {[%emt 00:04:04]} 16. h4
{[%clk 00:42:32]} {[%emt 00:08:30]} Be7 {[%clk 00:45:37]} {[%emt 00:05:52]} 17.
Bg5 {[%clk 00:31:02]} {[%emt 00:11:59]} Nh7 {[%clk 00:28:29]} {[%emt 00:17:39]}
18. f4 {[%clk 00:19:05]} {[%emt 00:12:26]} exf4 {[%clk 00:26:16]} {[%emt
00:02:44]} 19. Bxe7 {[%clk 00:15:33]} {[%emt 00:04:02]} Qxe7 {[%clk 00:26:30]}
{[%emt 00:00:16]} 20. Rxf4 {[%clk 00:15:20]} {[%emt 00:00:43]} Qc5+ {[%clk
00:24:53]} {[%emt 00:02:07]} 21. Kf1 {[%clk 00:13:14]} {[%emt 00:02:37]} Qxc3
{[%clk 00:22:35]} {[%emt 00:02:49]} 22. Nxh5 {[%clk 00:11:32]} {[%emt
00:02:11]} Nf6 {[%clk 00:18:46]} {[%emt 00:04:19]} 23. Nxf6+ {[%clk 00:05:56]}
{[%emt 00:06:06]} Qxf6 {[%clk 00:18:40]} {[%emt 00:00:36]} 24. h5 {[%clk
00:05:33]} {[%emt 00:00:53]} Qg5 {[%clk 00:13:13]} {[%emt 00:05:57]} 25. Rg4
{[%clk 00:05:34]} {[%emt 00:00:28]} Qxh5 {[%clk 00:13:25]} {[%emt 00:00:19]} 26.
Rxg7 {[%clk 00:05:40]} {[%emt 00:00:24]} Qh3+ {[%clk 00:13:30]} {[%emt
00:00:24]} 27. Rg2 {[%clk 00:06:05]} {[%emt 00:00:05]} Bxe4 {[%clk 00:13:24]}
{[%emt 00:00:36]} 28. Qa4+ {[%clk 00:04:30]} {[%emt 00:02:06]} Bc6 {[%clk
00:13:36]} {[%emt 00:00:17]} 29. Qg4 {[%clk 00:04:55]} {[%emt 00:00:05]} Bxg2+
{[%clk 00:12:00]} {[%emt 00:02:06]} 30. Qxg2 {[%clk 00:05:17]} {[%emt
00:00:08]} Qh1+ {[%clk 00:11:05]} {[%emt 00:01:25]} 0-1

[Event "Swedish Chess Championship 2019: Veteran-SM 65+"]
[Site "Stiga Sports Arena, Arenatorget 1, Eskilstuna, Sweden"]
[Date "2019.07.09"]
[Round "4.1"]
[White "Andersson, Kjell-Ake"]
[Black "Wedin, Svante"]
[Result "1-0"]
[TimeControl "90 minutes for 40 moves + 30 minutes for the rest of the game + 30 seconds per move from move one"]
[WhiteFideId "1713825"]
[BlackFideId "1711989"]
[WhiteElo "1859"]
[BlackElo "2003"]

1. d4 {[%clk 01:30:51]} {[%emt 00:00:08]} d5 {[%clk 01:30:52]} {[%emt
00:00:09]} 2. c4 {[%clk 01:30:54]} {[%emt 00:00:32]} c6 {[%clk 01:31:13]}
{[%emt 00:00:15]} 3. cxd5 {[%clk 01:29:27]} {[%emt 00:04:47]} cxd5 {[%clk
01:31:41]} {[%emt 00:00:07]} 4. Bf4 {[%clk 01:29:34]} {[%emt 00:02:17]} Nc6
{[%clk 01:31:46]} 5. Nc3 {[%clk 01:29:53]} Nf6 {[%clk 01:28:06]} {[%emt
00:00:04]} 6. e3 {[%clk 01:30:03]} {[%emt 00:00:06]} a6 {[%clk 01:28:20]}
{[%emt 00:00:21]} 7. Bd3 {[%clk 01:29:20]} {[%emt 00:01:00]} g6 {[%clk
01:24:51]} {[%emt 00:04:00]} 8. h3 {[%clk 01:28:13]} {[%emt 00:01:36]} Bg7
{[%clk 01:24:57]} {[%emt 00:00:25]} 9. Nf3 {[%clk 01:27:58]} {[%emt 00:00:44]}
O-O {[%clk 01:23:54]} {[%emt 00:01:34]} 10. O-O {[%clk 01:28:05]} {[%emt
00:00:22]} Nh5 {[%clk 01:19:38]} {[%emt 00:04:46]} 11. Bh2 {[%clk 01:27:30]}
{[%emt 00:01:04]} f5 {[%clk 01:19:55]} {[%emt 00:00:14]} 12. Rc1 {[%clk
01:27:09]} {[%emt 00:00:51]} Kh8 {[%clk 01:18:36]} {[%emt 00:01:49]} 13. Qb3
{[%clk 01:24:59]} {[%emt 00:02:40]} e6 {[%clk 01:17:40]} {[%emt 00:01:27]} 14.
Na4 {[%clk 01:23:03]} {[%emt 00:02:26]} f4 {[%clk 00:59:28]} {[%emt 00:18:42]}
15. Nb6 {[%clk 01:21:24]} {[%emt 00:02:09]} Ra7 {[%clk 00:58:42]} {[%emt
00:01:16]} 16. g4 {[%clk 01:15:14]} {[%emt 00:06:40]} fxg3 {[%clk 00:57:15]}
{[%emt 00:01:58]} 17. fxg3 {[%clk 01:15:31]} {[%emt 00:00:11]} Bd7 {[%clk
00:56:42]} {[%emt 00:01:05]} 18. g4 {[%clk 01:08:26]} {[%emt 00:07:33]} Rxf3
{[%clk 00:54:46]} {[%emt 00:02:28]} 19. Rxf3 {[%clk 01:08:06]} {[%emt
00:00:48]} Nxd4 {[%clk 00:55:08]} {[%emt 00:00:09]} 20. exd4 {[%clk 01:07:45]}
{[%emt 00:00:51]} Bxd4+ {[%clk 00:55:21]} {[%emt 00:00:17]} 21. Kg2 {[%clk
01:07:15]} {[%emt 00:00:59]} Bxb6 {[%clk 00:52:49]} {[%emt 00:03:03]} 22. Rcf1
{[%clk 01:04:29]} {[%emt 00:03:16]} 1-0